bitfinex-derivatives/quotes_BTCF0:USTF0_20250629
["timestamp","ask_amount","ask_price","bid_price","bid_amount"]
[1751156418213,0.001,107390.0,107380.0,1.10586706]
[1751156418916,0.001,107390.0,107380.0,1.16175405]
[1751156419119,0.004,107390.0,107380.0,1.16175405]
[1751156419316,0.004,107390.0,107380.0,1.10586706]
[1751156419518,0.004,107390.0,107380.0,1.18080565]
[1751156419721,0.004,107390.0,107380.0,1.23669264]
[1751156420023,0.1343206,107390.0,107380.0,0.72101474]
[1751156420213,0.1343206,107390.0,107380.0,0.66512775]
[1751156420410,0.1343206,107390.0,107380.0,1.79809264]
[1751156420622,0.1343206,107390.0,107380.0,1.53998476]
[1751156421321,0.1343206,107390.0,107380.0,1.48409777]
[1751156422323,0.1343206,107390.0,107380.0,1.5118618]
[1751156425520,0.1343206,107390.0,107380.0,1.47470534]
[1751156432227,0.1343206,107390.0,107380.0,1.44694131]
[1751156432426,0.1343206,107390.0,107380.0,1.47470534]
[1751156440630,0.1343206,107390.0,107380.0,1.7322693]
[1751156441237,0.1343206,107390.0,107380.0,1.76942576]
[1751156444235,0.1343206,107390.0,107380.0,1.79754872]
[1751156445437,0.1343206,107390.0,107380.0,1.76039226]
[1751156447334,0.1343206,107390.0,107380.0,1.77905228]
[1751156454543,0.1343206,107390.0,107380.0,1.21765228]
[1751156454842,0.39188759,107390.0,107380.0,1.41897228]
[1751156456738,0.1343206,107390.0,107380.0,1.41897228]
[1751156457734,0.1343206,107390.0,107380.0,0.85685228]
[1751156457928,0.1343206,107390.0,107380.0,1.16128529]
[1751156457929,0.39188759,107390.0,107380.0,1.16128529]
[1751156458132,0.48878759,107390.0,107380.0,1.16128529]
[1751156459939,0.48878759,107390.0,107380.0,1.09942529]
[1751156460542,0.48878759,107390.0,107380.0,1.16132529]
[1751156460841,0.2312206,107390.0,107380.0,1.41889228]
[1751156461042,0.48878759,107390.0,107380.0,1.41889228]
[1751156462540,0.48878759,107390.0,107380.0,1.16132529]
[1751156462737,0.2312206,107390.0,107380.0,1.41889228]
[1751156464545,0.2312206,107390.0,107380.0,1.16132529]
[1751156466145,0.2312206,107390.0,107380.0,1.41889228]
[1751156467146,0.2312206,107390.0,107380.0,1.16132529]
[1751156468246,0.2312206,107390.0,107380.0,1.41889228]
[1751156474152,0.2312206,107390.0,107380.0,0.9037583]
[1751156474360,0.2312206,107390.0,107380.0,1.41889228]
[1751156474752,0.1987206,107390.0,107380.0,1.41889228]
[1751156479051,0.1667206,107390.0,107380.0,1.41889228]
[1751156483358,0.1343206,107390.0,107380.0,1.41889228]
[1751156494074,0.1343206,107390.0,107380.0,0.9037583]
[1751156494276,0.1343206,107390.0,107380.0,1.44989228]
[1751156497575,0.1343206,107390.0,107380.0,1.45093228]
[1751156499479,0.1343206,107390.0,107380.0,1.81173228]
[1751156509385,0.1343206,107390.0,107380.0,1.24865228]
[1751156509584,0.1343206,107390.0,107380.0,1.81173228]
[1751156515191,0.004,107390.0,107380.0,1.99475226]
[1751156515492,0.004,107390.0,107380.0,2.08791041]
[1751156515882,0.004,107390.0,107380.0,2.06919749]
[1751156517490,0.004,107390.0,107380.0,1.99475226]
[1751156519896,0.004,107390.0,107380.0,2.06917489]
[1751156520393,0.004,107390.0,107380.0,1.99475226]
[1751156520696,0.004,107390.0,107380.0,2.08791041]
[1751156523406,0.27658657,107410.0,107400.0,0.1303085]
[1751156523596,0.27658657,107410.0,107400.0,1.26432065]
[1751156523894,0.27658657,107410.0,107400.0,1.32502065]
[1751156525201,0.27658657,107410.0,107400.0,1.26922248]
[1751156525401,0.27658657,107410.0,107400.0,1.32499782]
[1751156526802,0.14741207,107410.0,107400.0,1.34362004]
[1751156526994,0.01710477,107410.0,107400.0,1.73502004]
[1751156527195,0.14740117,107410.0,107400.0,1.73502004]
[1751156527591,0.01710477,107410.0,107400.0,1.73502004]
[1751156527797,0.01710477,107410.0,107400.0,1.74457097]
[1751156530301,0.14740117,107410.0,107400.0,1.74457097]
[1751156530611,0.01710477,107410.0,107400.0,1.74457097]
[1751156531606,0.14740117,107410.0,107400.0,1.74457097]
[1751156531807,0.01710477,107410.0,107400.0,1.74457097]
[1751156532007,0.14740117,107410.0,107400.0,1.74457097]
[1751156532612,0.01710477,107410.0,107400.0,2.00213796]
[1751156535402,0.2290081,107420.0,107410.0,0.1302964]
[1751156535607,0.1964357,107420.0,107410.0,1.15420322]
[1751156536408,0.1964357,107420.0,107410.0,1.16952649]
[1751156536906,0.1964357,107420.0,107410.0,0.9119595]
[1751156539213,0.2293357,107420.0,107410.0,0.9119595]
[1751156542212,0.2293357,107420.0,107410.0,0.65439251]
[1751156542410,0.2293357,107420.0,107410.0,0.9119595]
[1751156543413,0.2293357,107420.0,107410.0,1.16952649]
[1751156544313,0.2293357,107420.0,107410.0,0.9119595]
[1751156545314,0.2293357,107420.0,107410.0,1.16952649]
[1751156549919,0.1967643,107420.0,107410.0,1.16952649]
[1751156551410,0.1967643,107420.0,107410.0,1.11385365]
[1751156552021,0.1641932,107420.0,107410.0,1.11385365]
[1751156552222,0.1312932,107420.0,107410.0,1.11385365]
[1751156552422,0.1312932,107420.0,107410.0,1.18825121]
[1751156557936,0.1312932,107420.0,107410.0,1.75301121]
[1751156558839,0.38886019,107420.0,107410.0,0.61261723]
[1751156559035,0.42016019,107420.0,107410.0,1.40310422]
[1751156559234,0.48636019,107420.0,107410.0,1.40310422]
[1751156559427,0.48636019,107420.0,107410.0,0.58081723]
[1751156559633,1.10472718,107420.0,107410.0,0.0525107]
[1751156559833,1.10472718,107420.0,107410.0,0.67344414]
[1751156560236,1.10472718,107420.0,107410.0,0.10828414]
[1751156560437,1.10472718,107420.0,107410.0,0.67344414]
[1751156560738,1.10472718,107420.0,107410.0,0.93101113]
[1751156560935,1.10472718,107420.0,107410.0,0.91568786]
[1751156561136,1.10472718,107420.0,107410.0,0.65812087]
[1751156562331,1.10472718,107420.0,107410.0,0.22325727]
[1751156563238,1.10472718,107420.0,107410.0,0.48082426]
[1751156563438,1.10472718,107420.0,107410.0,0.42505082]
[1751156564340,0.84716019,107420.0,107410.0,0.48082426]
[1751156565140,0.5895932,107420.0,107410.0,0.48082426]
[1751156565341,0.84716019,107420.0,107410.0,0.42505082]
[1751156565729,0.5895932,107420.0,107410.0,0.42505082]
[1751156565936,0.84716019,107420.0,107410.0,0.48082426]
[1751156566441,0.5895932,107420.0,107410.0,0.42505082]
[1751156566636,0.84716019,107420.0,107410.0,0.29475442]
[1751156567043,0.5895932,107420.0,107410.0,0.29475442]
[1751156567245,0.84716019,107420.0,107410.0,0.29475442]
[1751156567439,0.84716019,107420.0,107410.0,0.42505082]
[1751156568139,0.5895932,107420.0,107410.0,0.42505082]
[1751156568342,0.84716019,107420.0,107410.0,0.42505082]
[1751156568840,0.5895932,107420.0,107410.0,0.42505082]
[1751156569037,0.84716019,107420.0,107410.0,0.42505082]
[1751156569543,0.84716019,107420.0,107410.0,0.48082426]
[1751156570140,0.5895932,107420.0,107410.0,0.48082426]
[1751156570347,0.84716019,107420.0,107410.0,0.48082426]
[1751156570646,0.5895932,107420.0,107410.0,0.48082426]
[1751156570834,0.84716019,107420.0,107410.0,0.48082426]
[1751156572248,0.5895932,107420.0,107410.0,0.48082426]
[1751156572439,0.84716019,107420.0,107410.0,0.48082426]
[1751156573243,0.5895932,107420.0,107410.0,0.48082426]
[1751156573445,0.84716019,107420.0,107410.0,0.48082426]
[1751156573646,0.48636019,107420.0,107410.0,0.48082426]
[1751156573846,0.84716019,107420.0,107410.0,0.48082426]
[1751156574347,0.84716019,107420.0,107410.0,0.35052786]
[1751156574548,0.84716019,107420.0,107410.0,0.48082426]
[1751156578151,0.4920932,107420.0,107410.0,0.48082426]
[1751156578348,0.6226132,107420.0,107410.0,0.48835082]
[1751156578552,0.6226132,107420.0,107410.0,0.51895082]
[1751156581456,0.6226132,107420.0,107410.0,0.57472426]
[1751156582958,0.6226132,107420.0,107410.0,0.31715727]
[1751156583152,0.6226132,107420.0,107410.0,0.57472426]
[1751156583352,0.1312932,107420.0,107410.0,1.20858952]
[1751156583657,0.1312932,107420.0,107410.0,0.81060209]
[1751156583860,0.1312932,107420.0,107410.0,0.5530351]
[1751156584159,0.1312932,107420.0,107410.0,1.1182351]
[1751156584352,0.1312932,107420.0,107410.0,0.5530351]
[1751156584547,0.38886019,107420.0,107410.0,1.09958677]
[1751156584754,0.1312932,107420.0,107410.0,1.09958677]
[1751156586163,0.1312932,107420.0,107410.0,0.84201978]
[1751156586367,0.1312932,107420.0,107410.0,1.09958677]
[1751156594470,0.1312932,107420.0,107410.0,1.1181951]
[1751156602279,0.1312932,107420.0,107410.0,1.13681922]
[1751156602674,0.1312932,107420.0,107410.0,1.13633922]
[1751156606481,0.1312932,107420.0,107410.0,0.57165922]
[1751156606687,0.74966019,107420.0,107410.0,0.83754526]
[1751156606878,0.84456019,107420.0,107410.0,0.83754526]
[1751156607080,0.84456019,107420.0,107410.0,0.0712807]
[1751156607081,1.10212718,107420.0,107410.0,0.0712807]
[1751156607586,0.84456019,107420.0,107410.0,0.32884769]
[1751156609394,1.10212718,107420.0,107410.0,0.0712807]
[1751156612085,1.66636718,107420.0,107410.0,0.0712807]
[1751156612489,1.1512332,107420.0,107410.0,0.0712807]
[1751156612689,1.66636718,107420.0,107410.0,0.0712807]
[1751156614090,1.1512332,107420.0,107410.0,0.0712807]
[1751156614290,1.66636718,107420.0,107410.0,0.0712807]
[1751156614690,1.1512332,107420.0,107410.0,0.0712807]
[1751156614896,1.66636718,107420.0,107410.0,0.0712807]
[1751156615890,1.1512332,107420.0,107410.0,0.0712807]
[1751156616090,1.66636718,107420.0,107410.0,0.0712807]
[1751156616390,1.1512332,107420.0,107410.0,0.0712807]
[1751156616585,1.66636718,107420.0,107410.0,0.0712807]
[1751156616987,1.66636718,107420.0,107410.0,0.32884769]
[1751156617594,1.1512332,107420.0,107410.0,0.32884769]
[1751156617887,1.40880019,107420.0,107410.0,0.32884769]
[1751156618081,1.1512332,107420.0,107410.0,0.32884769]
[1751156618284,1.40880019,107420.0,107410.0,0.32884769]
[1751156619092,1.40880019,107420.0,107410.0,0.39254769]
[1751156620895,1.40880019,107420.0,107410.0,0.42973628]
[1751156625596,1.1512332,107420.0,107410.0,0.42973628]
[1751156625794,1.40880019,107420.0,107410.0,0.42973628]
[1751156626097,1.1512332,107420.0,107410.0,0.42973628]
[1751156626297,1.40880019,107420.0,107410.0,0.42973628]
[1751156627996,1.1512332,107420.0,107410.0,0.42973628]
[1751156628198,1.40880019,107420.0,107410.0,0.42973628]
[1751156628599,1.1512332,107420.0,107410.0,0.42973628]
[1751156628898,1.40880019,107420.0,107410.0,0.42973628]
[1751156629099,1.1512332,107420.0,107410.0,0.42973628]
[1751156629296,1.40880019,107420.0,107410.0,0.42973628]
[1751156629599,1.1512332,107420.0,107410.0,0.42973628]
[1751156629799,1.40880019,107420.0,107410.0,0.42973628]
[1751156630201,1.1512332,107420.0,107410.0,0.42973628]
[1751156630402,1.40880019,107420.0,107410.0,0.39254769]
[1751156630795,1.1512332,107420.0,107410.0,0.39254769]
[1751156631095,1.40880019,107420.0,107410.0,0.39254769]
[1751156632002,1.1512332,107420.0,107410.0,0.39254769]
[1751156632201,1.40880019,107420.0,107410.0,0.39254769]
[1751156632999,1.1512332,107420.0,107410.0,0.39254769]
[1751156633400,1.40880019,107420.0,107410.0,0.39254769]
[1751156633605,1.1512332,107420.0,107410.0,0.39254769]
[1751156633805,1.40880019,107420.0,107410.0,0.39254769]
[1751156634103,1.1512332,107420.0,107410.0,0.39254769]
[1751156634304,1.40880019,107420.0,107410.0,0.39254769]
[1751156634805,1.1512332,107420.0,107410.0,0.39254769]
[1751156635005,1.40880019,107420.0,107410.0,0.39254769]
[1751156635605,1.1512332,107420.0,107410.0,0.39254769]
[1751156635904,1.40880019,107420.0,107410.0,0.1349807]
[1751156636108,1.40880019,107420.0,107410.0,0.39254769]
[1751156636705,1.66636718,107420.0,107410.0,0.39254769]
[1751156637706,1.79644718,107420.0,107410.0,0.39254769]
[1751156639308,1.79644718,107420.0,107410.0,0.1349807]
[1751156639512,1.79644718,107420.0,107410.0,0.39254769]
[1751156640112,1.10212718,107420.0,107410.0,0.39254769]
[1751156640311,1.79616718,107420.0,107410.0,0.39254769]
[1751156640513,1.53860019,107420.0,107410.0,0.39254769]
[1751156643620,1.44370019,107420.0,107410.0,0.39254769]
[1751156643920,1.44370019,107420.0,107410.0,0.42514769]
[1751156646724,1.1861332,107420.0,107410.0,0.42514769]
[1751156646918,1.44370019,107420.0,107410.0,0.42514769]
[1751156647226,1.1861332,107420.0,107410.0,0.42514769]
[1751156647425,1.44370019,107420.0,107410.0,0.42514769]
[1751156648019,1.1861332,107420.0,107410.0,0.42514769]
[1751156648219,1.44370019,107420.0,107410.0,0.42514769]
[1751156648928,1.1861332,107420.0,107410.0,0.42514769]
[1751156649129,1.44370019,107420.0,107410.0,0.42514769]
[1751156649429,1.1861332,107420.0,107410.0,0.42514769]
[1751156649731,1.44370019,107420.0,107410.0,0.42514769]
[1751156650122,1.47390019,107420.0,107410.0,0.42514769]
[1751156651129,1.2163332,107420.0,107410.0,0.42514769]
[1751156651330,1.47390019,107420.0,107410.0,0.42514769]
[1751156652429,1.2163332,107420.0,107410.0,0.42514769]
[1751156652634,1.47390019,107420.0,107410.0,0.42514769]
[1751156653028,1.2163332,107420.0,107410.0,0.42514769]
[1751156653329,1.53720019,107420.0,107410.0,0.39254769]
[1751156653730,1.2796332,107420.0,107410.0,0.39254769]
[1751156654037,1.53720019,107420.0,107410.0,0.39254769]
[1751156654329,1.2796332,107420.0,107410.0,0.39254769]
[1751156654631,1.53720019,107420.0,107410.0,0.39254769]
[1751156654823,1.2796332,107420.0,107410.0,0.39254769]
[1751156655135,1.53720019,107420.0,107410.0,0.39254769]
[1751156655633,1.55414401,107420.0,107410.0,0.39254769]
[1751156656132,1.29657702,107420.0,107410.0,0.39254769]
[1751156656331,1.55414401,107420.0,107410.0,0.39254769]
[1751156656736,1.29657702,107420.0,107410.0,0.39254769]
[1751156657031,1.55414401,107420.0,107410.0,0.39254769]
[1751156657833,1.29657702,107420.0,107410.0,0.39254769]
[1751156658231,1.55414401,107420.0,107410.0,0.1349807]
[1751156658432,1.55414401,107420.0,107410.0,0.39254769]
[1751156659034,1.29657702,107420.0,107410.0,0.39254769]
[1751156659226,1.55414401,107420.0,107410.0,0.39254769]
[1751156659538,1.29657702,107420.0,107410.0,0.39254769]
[1751156659729,1.55414401,107420.0,107410.0,0.39254769]
[1751156660234,1.29657702,107420.0,107410.0,0.39254769]
[1751156660533,1.55414401,107420.0,107410.0,0.39254769]
[1751156662338,1.29657702,107420.0,107410.0,0.39254769]
[1751156662639,1.55414401,107420.0,107410.0,0.39254769]
[1751156662933,1.29657702,107420.0,107410.0,0.39254769]
[1751156663139,1.55414401,107420.0,107410.0,0.39254769]
[1751156663642,1.29657702,107420.0,107410.0,0.1349807]
[1751156663940,1.55414401,107420.0,107410.0,0.39254769]
[1751156664140,1.29657702,107420.0,107410.0,0.39254769]
[1751156664342,1.55414401,107420.0,107410.0,0.39254769]
[1751156664842,1.29657702,107420.0,107410.0,0.39254769]
[1751156665038,1.55414401,107420.0,107410.0,0.39254769]
[1751156665540,1.29657702,107420.0,107410.0,0.39254769]
[1751156665744,1.55414401,107420.0,107410.0,0.39254769]
[1751156666042,1.29657702,107420.0,107410.0,0.39254769]
[1751156666241,1.55414401,107420.0,107410.0,0.39254769]
[1751156666645,1.29657702,107420.0,107410.0,0.39254769]
[1751156666948,1.55414401,107420.0,107410.0,0.39254769]
[1751156667542,1.29657702,107420.0,107410.0,0.39254769]
[1751156667841,1.55414401,107420.0,107410.0,0.39254769]
[1751156668442,1.29657702,107420.0,107410.0,0.39254769]
[1751156668647,1.55414401,107420.0,107410.0,0.39254769]
[1751156668943,1.29657702,107420.0,107410.0,0.39254769]
[1751156669144,1.55414401,107420.0,107410.0,0.39254769]
[1751156670246,1.29657702,107420.0,107410.0,0.39254769]
[1751156670451,1.55414401,107420.0,107410.0,0.39254769]
[1751156670844,1.29657702,107420.0,107410.0,0.39254769]
[1751156671046,1.55414401,107420.0,107410.0,0.39254769]
[1751156675751,1.29657702,107420.0,107410.0,0.39254769]
[1751156675946,1.55414401,107420.0,107410.0,0.39254769]
[1751156677049,1.55414401,107420.0,107410.0,0.1349807]
[1751156677251,1.55414401,107420.0,107410.0,0.39254769]
[1751156682354,1.46064401,107420.0,107410.0,0.32884769]
[1751156682653,1.20307702,107420.0,107410.0,0.32884769]
[1751156682854,1.55744401,107420.0,107410.0,0.32884769]
[1751156685556,1.19664401,107420.0,107410.0,0.32884769]
[1751156685752,1.55744401,107420.0,107410.0,0.32884769]
[1751156690664,1.29987702,107420.0,107410.0,0.32884769]
[1751156690960,1.55744401,107420.0,107410.0,0.39234769]
[1751156692964,1.19664401,107420.0,107410.0,0.39234769]
[1751156693160,1.55744401,107420.0,107410.0,0.39234769]
[1751156693664,1.19664401,107420.0,107410.0,0.39234769]
[1751156693865,1.29987702,107420.0,107410.0,0.39234769]
[1751156694068,1.55744401,107420.0,107410.0,0.39234769]
[1751156697969,1.19664401,107420.0,107410.0,0.39234769]
[1751156698157,1.55744401,107420.0,107410.0,0.39234769]
[1751156698972,1.19664401,107420.0,107410.0,0.39234769]
[1751156699171,1.55744401,107420.0,107410.0,0.39234769]
[1751156700270,0.83060401,107420.0,107410.0,0.39234769]
[1751156700476,1.48938401,107420.0,107410.0,0.42444769]
[1751156705576,1.48938401,107420.0,107410.0,0.40894942]
[1751156711784,1.23181702,107420.0,107410.0,0.40894942]
[1751156711977,1.48938401,107420.0,107410.0,0.40894942]
[1751156714981,0.63851702,107420.0,107410.0,0.53924582]
[1751156715182,1.20099702,107420.0,107410.0,0.53924582]
[1751156716177,0.50903702,107420.0,107410.0,0.53924582]
[1751156716370,0.63815702,107420.0,107410.0,0.53924582]
[1751156718181,0.50903702,107420.0,107410.0,0.53924582]
[1751156722584,0.50903702,107420.0,107410.0,0.28167883]
[1751156722880,0.50903702,107420.0,107410.0,0.53924582]
[1751156728783,0.50903702,107420.0,107410.0,0.48346339]
[1751156730889,0.50903702,107420.0,107410.0,0.53925361]
[1751156731193,0.50903702,107420.0,107410.0,0.54852921]
[1751156731393,0.50903702,107420.0,107410.0,0.49273899]
[1751156731796,0.50903702,107420.0,107410.0,0.48346339]
[1751156731995,0.50903702,107420.0,107410.0,1.04602339]
[1751156732295,0.14823702,107420.0,107410.0,1.48122095]
[1751156743604,0.14823702,107420.0,107410.0,1.73878794]
[1751156766921,0.14823702,107420.0,107410.0,1.37798794]
[1751156767120,0.14823702,107420.0,107410.0,1.73878794]
[1751156775741,0.1312932,107420.0,107410.0,1.73878794]
[1751156776442,0.001,107420.0,107410.0,1.73878794]
[1751156776643,0.1312843,107420.0,107410.0,1.73878794]
[1751156790152,0.1312843,107420.0,107410.0,1.37798794]
[1751156790351,0.1312843,107420.0,107410.0,1.73878794]
[1751156798755,0.001,107450.0,107440.0,0.13026]
[1751156798951,0.01789457,107450.0,107440.0,1.87865404]
[1751156799151,0.01789457,107450.0,107440.0,1.66988802]
[1751156799456,0.01789457,107450.0,107440.0,2.02720108]
[1751156799656,0.01789457,107450.0,107440.0,1.93425211]
[1751156799956,0.01789457,107450.0,107440.0,2.00921992]
[1751156800357,0.001,107450.0,107440.0,2.06486748]
[1751156801455,0.001,107450.0,107440.0,2.0742404]
[1751156801963,0.001,107450.0,107440.0,2.01859284]
[1751156803452,0.001,107450.0,107440.0,2.0929904]
[1751156805355,0.001,107450.0,107440.0,2.01859284]
[1751156806358,0.001,107450.0,107440.0,2.0741146]
[1751156809964,0.001,107450.0,107440.0,2.06474168]
[1751156810364,0.001,107450.0,107440.0,2.07399129]
[1751156810763,0.001,107450.0,107440.0,1.80717469]
[1751156812063,0.001,107450.0,107440.0,0.72972071]
[1751156812262,0.1312479,107450.0,107440.0,1.44625469]
[1751156817066,0.1312479,107450.0,107440.0,0.88405469]
[1751156817268,0.1312479,107450.0,107440.0,1.44621469]
[1751156817568,0.1312479,107450.0,107440.0,1.37124688]
[1751156819669,0.52402735,107460.0,107450.0,0.1302479]
[1751156819670,0.00314845,107460.0,107450.0,0.1302479]
[1751156819866,0.491024,107470.0,107460.0,0.1302358]
[1751156820059,0.491024,107470.0,107460.0,1.36557796]
[1751156820264,0.4910237,107470.0,107460.0,1.36557796]
[1751156821865,0.4910237,107470.0,107460.0,1.33782874]
[1751156822270,0.4910237,107470.0,107460.0,1.36558027]
[1751156822468,0.4910237,107470.0,107460.0,1.33782874]
[1751156823373,0.4910237,107470.0,107460.0,1.39333467]
[1751156826869,0.1302237,107470.0,107460.0,1.39333467]
[1751156827076,0.4910237,107470.0,107460.0,1.39333467]
[1751156827274,0.4910237,107470.0,107460.0,1.35633571]
[1751156837884,0.4910237,107470.0,107460.0,1.32493571]
[1751156838086,0.5515237,107470.0,107460.0,1.32493571]
[1751156839584,0.5213237,107470.0,107460.0,1.32493571]
[1751156839787,0.5213237,107470.0,107460.0,1.35523571]
[1751156840085,0.4910237,107470.0,107460.0,1.35523571]
[1751156843592,0.1302237,107470.0,107460.0,1.35523571]
[1751156843788,0.4910237,107470.0,107460.0,1.35523571]
[1751156845293,0.4910237,107470.0,107460.0,1.29972978]
[1751156847293,0.4910237,107470.0,107460.0,1.37412734]
[1751156851499,0.4910237,107470.0,107460.0,0.85899336]
[1751156851904,0.4910237,107470.0,107460.0,1.34382734]
[1751156852203,0.5850237,107470.0,107460.0,1.34382734]
[1751156862016,0.2242237,107470.0,107460.0,1.34382734]
[1751156862217,0.5850237,107470.0,107460.0,1.34382734]
[1751156867218,0.5530237,107470.0,107460.0,1.34382734]
[1751156870014,0.5530237,107470.0,107460.0,1.37622734]
[1751156870509,0.5226237,107470.0,107460.0,1.37622734]
[1751156874921,0.4910237,107470.0,107460.0,1.37622734]
[1751156880420,0.79035574,107480.0,107470.0,0.1302237]
[1751156880723,0.75875574,107480.0,107470.0,0.54975034]
[1751156880925,0.72825574,107480.0,107470.0,0.79819257]
[1751156881228,0.53378534,107480.0,107470.0,0.79819257]
[1751156881527,0.63059244,107480.0,107470.0,0.74245768]
[1751156881713,0.14043244,107480.0,107470.0,0.74245768]
[1751156881916,0.14043244,107480.0,107470.0,0.81685524]
[1751156884132,0.14043244,107480.0,107470.0,0.74245768]
[1751156884428,0.14043244,107480.0,107470.0,0.75157483]
[1751156884632,0.14043244,107480.0,107470.0,0.74245768]
[1751156886230,0.14043244,107480.0,107470.0,0.79812589]
[1751156890328,0.03669435,107510.0,107470.0,1.59590615]
[1751156890527,0.52767665,107510.0,107500.0,0.710232]
[1751156890728,0.52767665,107510.0,107500.0,1.23958016]
[1751156890931,0.52767665,107510.0,107500.0,1.30158016]
[1751156891221,0.52767665,107510.0,107500.0,1.23970016]
[1751156891222,0.5367966,107510.0,107500.0,1.23970016]
[1751156891531,0.6332966,107510.0,107500.0,1.23970016]
[1751156892831,0.6332966,107510.0,107500.0,1.31575247]
[1751156893133,0.6332966,107510.0,107500.0,1.34357135]
[1751156893323,0.6332966,107510.0,107500.0,1.38058314]
[1751156893731,0.6332966,107510.0,107500.0,1.3951208]
[1751156894325,0.6332966,107510.0,107500.0,1.33948304]
[1751156895223,0.6332966,107510.0,107500.0,1.32494538]
[1751156896334,0.89086359,107510.0,107500.0,0.96483694]
[1751156896535,0.89086359,107510.0,107500.0,0.39835694]
[1751156896834,0.36494845,107510.0,107500.0,0.80059451]
[1751156897032,0.00414845,107510.0,107500.0,0.92100642]
[1751156897234,0.00414845,107510.0,107500.0,0.90652314]
[1751156898331,0.00414845,107510.0,107500.0,0.91566489]
[1751156898526,0.00414845,107510.0,107500.0,1.27646489]
[1751156901135,0.00414845,107510.0,107500.0,1.26732314]
[1751156901540,0.13432365,107510.0,107500.0,1.21168538]
[1751156901739,0.13432365,107510.0,107500.0,1.22109096]
[1751156903035,0.13432365,107510.0,107500.0,1.24877967]
[1751156903234,0.13432365,107510.0,107500.0,1.22109096]
[1751156906335,0.13432365,107510.0,107500.0,1.21168538]
[1751156907839,0.13432365,107510.0,107500.0,1.77908538]
[1751156909242,0.13432365,107510.0,107500.0,1.79355348]
[1751156909842,0.13432365,107510.0,107500.0,1.77908538]
[1751156911437,0.13432365,107510.0,107500.0,1.83472314]
[1751156913347,0.13432365,107510.0,107500.0,1.79771135]
[1751156914548,0.13432365,107510.0,107500.0,2.05527834]
[1751156914846,0.3608,107530.0,107500.0,2.74922669]
[1751156915144,0.28595249,107540.0,107530.0,0.14686126]
[1751156915345,0.28595249,107540.0,107530.0,1.61925745]
[1751156915546,0.28595249,107540.0,107530.0,1.68385745]
[1751156915744,0.28595249,107540.0,107530.0,1.711793]
[1751156916540,0.41609139,107540.0,107530.0,1.45345659]
[1751156917146,0.41609139,107540.0,107530.0,1.49036485]
[1751156917747,0.41609139,107540.0,107530.0,1.50484481]
[1751156917951,0.77689139,107540.0,107530.0,1.14404481]
[1751156918146,0.80989139,107540.0,107530.0,1.12956485]
[1751156918449,0.80989139,107540.0,107530.0,1.12940485]
[1751156919041,0.84159139,107540.0,107530.0,1.12940485]
[1751156920249,0.84159139,107540.0,107530.0,1.12943867]
[1751156920447,0.84159139,107540.0,107530.0,0.3040411]
[1751156920648,0.5566389,107540.0,107530.0,1.09779867]
[1751156920850,0.5886389,107540.0,107530.0,1.09779867]
[1751156921045,0.5249389,107540.0,107530.0,1.09779867]
[1751156922752,0.5575389,107540.0,107530.0,1.06479867]
[1751156922952,0.5575389,107540.0,107530.0,1.06451867]
[1751156923150,0.5575389,107540.0,107530.0,1.00888091]
[1751156925655,0.5575389,107540.0,107530.0,1.06451867]
[1751156927057,0.5575389,107540.0,107530.0,1.09571867]
[1751156931054,0.3948,107540.0,107530.0,1.09571867]
[1751156931252,0.001,107540.0,107530.0,1.09571867]
[1751156931459,0.001,107540.0,107530.0,1.12871867]
[1751156932254,0.001,107540.0,107530.0,1.09177659]
[1751156934663,0.001,107540.0,107530.0,1.09729636]
[1751156936266,0.1311389,107540.0,107530.0,1.09729636]
[1751156938966,0.001,107540.0,107530.0,1.09729636]
[1751156940771,0.001,107540.0,107530.0,1.12959636]
[1751156941163,0.001,107540.0,107530.0,1.0739586]
[1751156941968,0.1311389,107540.0,107530.0,0.14686126]
[1751156942171,0.1311389,107540.0,107530.0,0.97057883]
[1751156942172,0.5549389,107540.0,107530.0,0.97057883]
[1751156942368,0.5549389,107540.0,107530.0,0.7692908]
[1751156942573,0.3618,107540.0,107530.0,1.02608837]
[1751156942872,0.3618,107540.0,107530.0,1.12128837]
[1751156943272,0.3618,107540.0,107530.0,1.06577883]
[1751156943670,0.3618,107540.0,107530.0,1.07132581]
[1751156944280,0.3618,107540.0,107530.0,1.1455095]
[1751156944468,0.001,107540.0,107530.0,1.1455095]
[1751156948578,0.001,107540.0,107530.0,1.40236037]
[1751156955073,0.1311389,107540.0,107530.0,1.40236037]
[1751156959074,0.001,107540.0,107530.0,1.40236037]
[1751156964989,0.1311389,107540.0,107530.0,1.40236037]
[1751156965488,0.001,107540.0,107530.0,1.40236037]
[1751156965888,0.1311389,107540.0,107530.0,1.40236037]
[1751156966085,0.1639389,107540.0,107530.0,1.40236037]
[1751156971189,0.130151,107530.0,107520.0,0.09315815]
[1751156971393,0.1301752,107510.0,107500.0,0.33287653]
[1751156971690,0.50621244,107510.0,107500.0,0.66388444]
[1751156971897,0.20901244,107510.0,107500.0,0.79407174]
[1751156972290,0.20901244,107510.0,107500.0,0.71988805]
[1751156972688,0.46583666,107510.0,107500.0,0.71988805]
[1751156972896,0.46583666,107510.0,107500.0,1.03422383]
[1751156974302,0.46583666,107510.0,107500.0,1.29104805]
[1751156974498,0.49773666,107510.0,107500.0,1.29104805]
[1751156974700,0.24091244,107510.0,107500.0,0.20623961]
[1751156974900,0.24091244,107510.0,107500.0,0.77743961]
[1751156975095,0.24091244,107510.0,107500.0,0.81444423]
[1751156975698,0.24091244,107510.0,107500.0,0.24324423]
[1751156976098,0.24091244,107510.0,107500.0,0.81416423]
[1751156976300,0.24091244,107510.0,107500.0,0.73811192]
[1751156979302,0.24091244,107510.0,107500.0,0.7011073]
[1751156983802,0.60171244,107510.0,107500.0,0.7011073]
[1751156985005,0.60171244,107510.0,107500.0,0.1301873]
[1751156985410,0.1301873,107500.0,107490.0,0.51949198]
[1751156985608,0.1301873,107500.0,107490.0,1.12212108]
[1751156985609,0.1907873,107500.0,107490.0,1.12212108]
[1751156986408,0.1907873,107500.0,107490.0,0.55204108]
[1751156986709,0.1907873,107500.0,107490.0,1.12204108]
[1751156987007,0.1907873,107500.0,107490.0,0.55204108]
[1751156987408,0.1907873,107500.0,107490.0,1.12200108]
[1751156987808,0.1907873,107500.0,107490.0,0.16719782]
[1751156988107,0.1907873,107500.0,107490.0,0.73711782]
[1751156990812,0.5515873,107500.0,107490.0,0.60672462]
[1751156991013,0.1301995,107490.0,107480.0,0.63150877]
[1751156991209,0.1301995,107490.0,107480.0,1.25659504]
[1751156991506,0.4909995,107490.0,107480.0,1.25655504]
[1751156993911,0.4909995,107490.0,107480.0,0.68691504]
[1751156994112,0.4909995,107490.0,107480.0,1.25651504]
[1751156998114,0.4909995,107490.0,107480.0,1.21951042]
[1751157000615,0.4909995,107490.0,107480.0,1.47667186]
[1751157001111,0.4909995,107490.0,107480.0,1.42126559]
[1751157001316,0.4909995,107490.0,107480.0,1.49544928]
[1751157001917,0.4909995,107490.0,107480.0,1.47688164]
[1751157004018,0.4909995,107490.0,107480.0,0.90728164]
[1751157004220,0.4909995,107490.0,107480.0,1.47604164]